bitfinex-derivatives/quotes_BTCF0:USTF0_20260106
["timestamp","ask_amount","ask_price","bid_price","bid_amount"]
[1767660818418,0.00015988,93830.0,93821.0,0.010659]
[1767660818824,0.00015988,93830.0,93822.0,0.05568792]
[1767660819935,0.00015988,93830.0,93813.0,0.010659]
[1767660820120,0.00015988,93830.0,93815.0,0.010659]
[1767660820326,0.00015988,93830.0,93815.0,0.050659]
[1767660820725,0.00015988,93830.0,93817.0,0.06634692]
[1767660820935,0.00015988,93830.0,93818.0,0.05568792]
[1767660821131,0.00015988,93830.0,93822.0,0.05568792]
[1767660821344,0.09064,93834.0,93822.0,0.05568792]
[1767660822036,0.09064,93834.0,93821.0,0.09051692]
[1767660823933,0.09064,93834.0,93814.0,0.0558478]
[1767660823934,0.010657,93833.0,93814.0,0.0558478]
[1767660824236,0.010657,93833.0,93814.0,0.0958478]
[1767660824736,0.09012665,93830.0,93814.0,0.04015988]
[1767660826533,0.10078465,93830.0,93814.0,0.04015988]
[1767660826738,0.09064,93834.0,93814.0,0.04015988]
[1767660826739,0.010658,93825.0,93814.0,0.01]
[1767660826925,0.09012665,93819.0,93798.0,0.05568792]
[1767660827125,0.09012665,93819.0,93799.0,0.05568792]
[1767660827342,0.09012665,93819.0,93800.0,0.05568792]
[1767660827536,0.09012665,93819.0,93800.0,0.09568792]
[1767660828132,0.09064,93822.0,93800.0,0.09568792]
[1767660828133,0.09064,93822.0,93803.0,0.05568792]
[1767660828339,0.09064,93822.0,93804.0,0.05568792]
[1767660828535,0.09064,93822.0,93805.0,0.05568792]
[1767660828842,0.09064,93822.0,93805.0,0.06568792]
[1767660829743,0.09064,93822.0,93805.0,0.15620484]
[1767660830140,0.09064,93822.0,93811.0,0.05568792]
[1767660830332,0.09064,93822.0,93810.0,0.09051692]
[1767660830539,0.10078465,93828.0,93807.0,0.05568792]
[1767660830739,0.010658,93826.0,93807.0,0.05568792]
[1767660831841,0.010658,93826.0,93808.0,0.09051692]
[1767660832048,0.09064,93825.0,93812.0,0.05568792]
[1767660832240,0.1265377,93824.0,93796.0,0.09064]
[1767660832439,0.010659,93821.0,93798.0,0.010661]
[1767660832644,0.09829479,93820.0,93798.0,0.050661]
[1767660833749,0.09829479,93820.0,93798.0,0.04]
[1767660834239,0.09012665,93822.0,93804.0,0.01066]
[1767660834431,0.09829479,93820.0,93806.0,0.05277945]
[1767660834631,0.09829479,93820.0,93807.0,0.05277945]
[1767660837147,0.09064,93822.0,93807.0,0.05277945]
[1767660837349,0.09829479,93820.0,93807.0,0.05277945]
[1767660837538,0.09064,93822.0,93807.0,0.05277945]
[1767660837744,0.09829479,93820.0,93807.0,0.05277945]
[1767660842054,0.09829479,93820.0,93811.0,0.01066]
[1767660842248,0.09829479,93820.0,93807.0,0.05277945]
[1767660842841,0.09829479,93820.0,93806.0,0.09708302]
[1767660843853,0.09829479,93820.0,93804.0,0.01066]
[1767660844056,0.09829479,93820.0,93804.0,0.05066]
[1767660844246,0.09829479,93820.0,93804.0,0.10504185]
[1767660844547,0.10895379,93820.0,93804.0,0.04]
[1767660844744,0.010659,93818.0,93804.0,0.04]
[1767660846155,0.09829479,93820.0,93804.0,0.04]
[1767660846345,0.09829479,93820.0,93805.0,0.05438185]
[1767660846545,0.09829479,93820.0,93805.0,0.06438185]
[1767660848845,0.09097159,93806.0,93786.0,0.05438185]
[1767660849146,0.18893479,93810.0,93791.0,0.05438185]
[1767660849351,0.18893479,93810.0,93792.0,0.05438185]
[1767660849550,0.09097159,93817.0,93796.0,0.05438185]
[1767660849845,0.09064,93820.0,93808.0,0.05438185]
[1767660850051,0.09064,93820.0,93805.0,0.09226393]
[1767660850253,0.18893479,93820.0,93805.0,0.09226393]
[1767660851048,0.09064,93820.0,93805.0,0.09226393]
[1767660851354,0.18893479,93820.0,93805.0,0.09226393]
[1767660851958,0.18893479,93820.0,93805.0,0.14664578]
[1767660851959,0.09064,93820.0,93805.0,0.14664578]
[1767660852358,0.09064,93820.0,93806.0,0.05438185]
[1767660853151,0.18893479,93820.0,93806.0,0.05438185]
[1767660853459,0.18893479,93820.0,93802.0,0.05438185]
[1767660855448,0.18893479,93820.0,93804.0,0.05438185]
[1767660855656,0.00015988,93823.0,93804.0,0.14664578]
[1767660855848,0.00015988,93823.0,93812.0,0.09226393]
[1767660856651,0.00015988,93823.0,93810.0,0.09829479]
[1767660856852,0.00015988,93823.0,93807.0,0.05438185]
[1767660859150,0.00015988,93823.0,93807.0,0.14664578]
[1767660859350,0.00015988,93823.0,93808.0,0.05438185]
[1767660861061,0.010659,93822.0,93808.0,0.05438185]
[1767660861265,0.00015988,93823.0,93807.0,0.09226393]
[1767660861757,0.00015988,93823.0,93807.0,0.14664578]
[1767660861953,0.00015988,93823.0,93809.0,0.09226393]
[1767660862154,0.00015988,93823.0,93809.0,0.06847189]
[1767660862958,0.00015988,93823.0,93801.0,0.010661]
[1767660863158,0.00015988,93823.0,93801.0,0.050661]
[1767660864160,0.00015988,93823.0,93804.0,0.09226393]
[1767660864351,0.14967616,93820.0,93804.0,0.04]
[1767660865264,0.010659,93818.0,93804.0,0.04]
[1767660868371,0.06204037,93816.0,93804.0,0.04]
[1767660868760,0.010659,93816.0,93804.0,0.04]
[1767660869766,0.010659,93816.0,93804.0,0.01]
[1767660872571,0.010659,93816.0,93801.0,0.09068]
[1767660872772,0.04759829,93813.0,93801.0,0.13068]
[1767660873366,0.0941425,93814.0,93801.0,0.13068]
[1767660873969,0.010659,93816.0,93801.0,0.13068]
[1767660874766,0.010659,93816.0,93801.0,0.04]
[1767660875972,0.09829479,93811.0,93794.0,0.18203392]
[1767660876174,0.04759829,93814.0,93794.0,0.26959042]
[1767660876378,0.04759829,93814.0,93795.0,0.0475565]
[1767660876571,0.010659,93815.0,93796.0,0.0475565]
[1767660876772,0.010659,93815.0,93796.0,0.0875565]
[1767660879180,0.01066,93813.0,93796.0,0.0875565]
[1767660879376,0.01066,93811.0,93796.0,0.0875565]
[1767660879775,0.010659,93814.0,93797.0,0.0475565]
[1767660879974,0.010659,93814.0,93797.0,0.0875565]
[1767660880373,0.010659,93815.0,93797.0,0.0875565]
[1767660882278,0.09068,93816.0,93797.0,0.01019273]
[1767660882470,0.09068,93816.0,93797.0,0.04]
[1767660883273,0.101339,93816.0,93797.0,0.13135392]
[1767660883684,0.101339,93816.0,93798.0,0.010661]
[1767660883872,0.101339,93816.0,93798.0,0.050661]
[1767660884071,0.101339,93816.0,93798.0,0.14201492]
[1767660884280,0.101339,93816.0,93799.0,0.0475565]
[1767660884482,0.101339,93816.0,93799.0,0.0875565]
[1767660885382,0.09068,93816.0,93804.0,0.0475565]
[1767660885582,0.09068,93816.0,93803.0,0.09135392]
[1767660886472,0.101339,93816.0,93803.0,0.09135392]
[1767660886974,0.09068,93816.0,93803.0,0.09135392]
[1767660887374,0.09068,93816.0,93805.0,0.01066]
[1767660888773,0.00015988,93823.0,93806.0,0.09829479]
[1767660888973,0.00015988,93823.0,93810.0,0.10895479]
[1767660889385,0.00015988,93823.0,93811.0,0.0475565]
[1767660892185,0.00015988,93823.0,93811.0,0.00597985]
[1767660893172,0.04759829,93822.0,93806.0,0.09068]
[1767660893378,0.010659,93818.0,93806.0,0.13068]
[1767660893680,0.010659,93818.0,93806.0,0.03105388]
[1767660893882,0.010659,93818.0,93802.0,0.09068]
[1767660894083,0.010659,93818.0,93802.0,0.13068]
[1767660894483,0.010659,93821.0,93802.0,0.13068]
[1767660895386,0.010659,93821.0,93802.0,0.17328887]
[1767660895584,0.010659,93821.0,93802.0,0.08260887]
[1767660896284,0.04759829,93822.0,93803.0,0.04107816]
[1767660896488,0.09430238,93823.0,93805.0,0.04107816]
[1767660896677,0.00015988,93823.0,93806.0,0.01066]
[1767660897077,0.00015988,93823.0,93805.0,0.13561998]
[1767660897278,0.00015988,93823.0,93806.0,0.04107816]
[1767660898690,0.01081788,93823.0,93806.0,0.04107816]
[1767660900890,0.00015988,93823.0,93806.0,0.14627998]
[1767660901088,0.00015988,93823.0,93807.0,0.03885548]
[1767660901684,0.00015988,93823.0,93808.0,0.03831231]
[1767660902278,0.00015988,93823.0,93807.0,0.00736314]
[1767660903476,0.00015988,93823.0,93808.0,0.01066]
[1767660903674,0.09064,93826.0,93808.0,0.01066]
[1767660904183,0.09064,93826.0,93809.0,0.00357551]
[1767660904876,0.10471065,93825.0,93806.0,0.00318794]
[1767660905391,0.09405265,93823.0,93806.0,0.00015988]
[1767660905715,0.04848845,93822.0,93806.0,0.00015988]
[1767660905989,0.09405265,93823.0,93806.0,0.00015988]
[1767660906992,0.09405265,93823.0,93806.0,0.00208194]
[1767660907998,0.09405265,93823.0,93807.0,0.01066]
[1767660908897,0.09405265,93823.0,93806.0,0.00208194]
[1767660909096,0.10471065,93823.0,93806.0,0.00208194]
[1767660909896,0.010659,93821.0,93806.0,0.00208194]
[1767660910096,0.1532001,93821.0,93806.0,0.00015988]
[1767660910396,0.09405265,93821.0,93806.0,0.00015988]
[1767660911595,0.09405265,93821.0,93807.0,0.01066]
[1767660912296,0.09405265,93827.0,93809.0,0.01066]
[1767660912495,0.09405265,93825.0,93809.0,0.01066]
[1767660913287,0.1531991,93825.0,93809.0,0.01066]
[1767660913582,0.09405265,93824.0,93809.0,0.01066]
[1767660914296,0.09405265,93824.0,93806.0,0.01081988]
[1767660914600,0.1425411,93824.0,93806.0,0.01081988]
[1767660914892,0.04848845,93822.0,93806.0,0.01081988]
[1767660915091,0.09405265,93821.0,93806.0,0.01081988]
[1767660915701,0.09405265,93821.0,93808.0,0.01066]
[1767660915895,0.010658,93828.0,93810.0,0.01066]
[1767660916093,0.09064,93827.0,93810.0,0.10619807]
[1767660917201,0.09064,93827.0,93810.0,0.01066]
[1767660921601,0.18469265,93827.0,93806.0,0.00015988]
[1767660921798,0.18469265,93827.0,93806.0,0.04015988]
[1767660921997,0.09405265,93826.0,93806.0,0.04015988]
[1767660922193,0.09405265,93826.0,93810.0,0.01066]
[1767660922396,0.09405265,93826.0,93797.0,0.09068]
[1767660922598,0.1425411,93826.0,93807.0,0.01066]
[1767660922797,0.09405265,93825.0,93807.0,0.05066]
[1767660923403,0.09405265,93820.0,93807.0,0.04]
[1767660924295,0.10471165,93820.0,93807.0,0.04]
[1767660924494,0.09405265,93819.0,93807.0,0.04]
[1767660924805,0.09405265,93823.0,93807.0,0.04]
[1767660925096,0.09405265,93823.0,93813.0,0.010659]
[1767660925296,0.13230707,93833.0,93813.0,0.04]
[1767660925602,0.09405265,93832.0,93813.0,0.04]
[1767660926302,0.09405265,93832.0,93817.0,0.010659]
[1767660926499,0.09405265,93832.0,93808.0,0.03264473]
[1767660926688,0.09405265,93832.0,93815.0,0.010659]
[1767660929604,0.09405265,93832.0,93817.0,0.010659]
[1767660930198,0.09405265,93832.0,93817.0,0.00165031]
[1767660930398,0.09405265,93832.0,93808.0,0.03264473]
[1767660930599,0.09405265,93832.0,93810.0,0.0320662]
[1767660930798,0.09405265,93832.0,93811.0,0.0320662]
[1767660931001,0.09405265,93832.0,93811.0,0.0720662]
[1767660931205,0.09405265,93832.0,93822.0,0.010658]
[1767660931507,0.09405265,93832.0,93811.0,0.0320662]
[1767660931709,0.09405265,93832.0,93811.0,0.0720662]
[1767660932598,0.09405265,93832.0,93824.0,0.010658]
[1767660933106,0.09064,93837.0,93826.0,0.010658]
[1767660933409,0.1396539,93839.0,93826.0,0.010658]
[1767660933606,0.09259041,93836.0,93826.0,0.010658]
[1767660936311,0.13965357,93834.0,93823.0,0.010658]
[1767660936519,0.09259041,93833.0,93823.0,0.010658]
[1767660936720,0.09259041,93830.0,93817.0,0.09064]
[1767660937018,0.09259041,93826.0,93817.0,0.04]
[1767660937807,0.09259041,93826.0,93818.0,0.010659]
[1767660938124,0.04706316,93831.0,93820.0,0.010659]
[1767660938125,0.00015988,93831.0,93820.0,0.010659]
[1767660938305,0.00015988,93831.0,93820.0,0.050659]
[1767660938812,0.00015988,93831.0,93820.0,0.04]
[1767660939021,1e-08,93831.0,93824.0,0.010658]
[1767660939520,1e-08,93831.0,93826.0,0.010658]
[1767660940814,1e-08,93831.0,93823.0,0.010658]
[1767660942517,1e-08,93831.0,93825.0,0.010658]
[1767660942724,1e-08,93831.0,93817.0,0.0290149]
[1767660943023,1e-08,93831.0,93817.0,0.0690149]
[1767660944031,1e-08,93831.0,93826.0,0.010658]
[1767660945722,1e-08,93831.0,93828.0,0.010658]
[1767660955730,1e-08,93831.0,93818.0,0.010659]
[1767660955731,1e-08,93831.0,93825.0,0.010658]
[1767660955936,1e-08,93831.0,93824.0,0.010658]
[1767660956339,1e-08,93831.0,93820.0,0.0982306]
[1767660956636,1e-08,93831.0,93820.0,0.1382306]
[1767660957336,1e-08,93831.0,93828.0,0.010658]
[1767660960232,1e-08,93831.0,93820.0,0.0982306]
[1767660960427,1e-08,93831.0,93828.0,0.010658]
[1767660963336,1e-08,93831.0,93830.0,0.010658]
[1767660963532,3.3e-07,93839.0,93833.0,0.010657]
[1767660965038,3.3e-07,93839.0,93832.0,0.010657]
[1767660966943,3.3e-07,93839.0,93834.0,0.010657]
[1767660967142,0.01733809,93843.0,93829.0,0.0982306]
[1767660967143,4.2e-07,93843.0,93839.0,0.010657]
[1767660967437,0.09064,93849.0,93841.0,0.010656]
[1767660967631,0.17950998,93853.0,93841.0,0.010656]
[1767660967827,0.09355444,93853.0,93841.0,0.010656]
[1767660968240,0.10804315,93853.0,93839.0,0.0982306]
[1767660968432,0.01448871,93853.0,93845.0,0.010656]
[1767660968635,0.09355444,93862.0,93847.0,0.010656]
[1767660968834,0.09355444,93862.0,93850.0,0.0982306]
[1767660969029,0.09355444,93862.0,93849.0,0.010655]
[1767660969235,0.19347532,93862.0,93849.0,0.010655]
[1767660969443,0.19347532,93862.0,93845.0,0.010656]
[1767660969842,0.19347532,93862.0,93840.0,0.0982306]
[1767660969843,0.09355444,93861.0,93849.0,0.010655]
[1767660970236,0.09355444,93861.0,93840.0,0.0982306]
[1767660970436,0.09355444,93861.0,93841.0,0.02837601]
[1767660970636,0.09355444,93861.0,93849.0,0.010655]
[1767660971439,0.09355444,93861.0,93853.0,0.010655]
[1767660972043,0.01473199,93862.0,93853.0,0.010655]
[1767660972344,0.09355444,93863.0,93850.0,0.1088856]
[1767660972538,0.09355444,93863.0,93847.0,0.010656]
[1767660972739,0.09355444,93862.0,93850.0,0.0982306]
[1767660972933,0.09355444,93862.0,93840.0,0.0982306]
[1767660973142,0.010655,93855.0,93840.0,0.1382306]
[1767660973443,0.010655,93855.0,93840.0,0.1488866]
[1767660973643,0.09355444,93858.0,93843.0,0.010656]
[1767660973844,0.09355444,93858.0,93845.0,0.010656]
[1767660974547,0.09355444,93858.0,93842.0,0.010656]
[1767660974745,0.09355444,93858.0,93842.0,0.050656]
[1767660975246,0.09355444,93858.0,93844.0,0.010656]
[1767660975546,0.09355444,93858.0,93844.0,0.050656]
[1767660977646,0.09355444,93858.0,93846.0,0.010656]
[1767660978548,0.15026197,93863.0,93848.0,0.010655]
[1767660978747,0.10782037,93863.0,93850.0,0.0982306]
[1767660978938,0.10782037,93863.0,93850.0,0.01035241]
[1767660979338,0.10782037,93863.0,93848.0,0.010655]
[1767660979646,0.10782037,93863.0,93850.0,0.0982306]
[1767660981247,0.10782037,93863.0,93849.0,0.010655]
[1767660981743,0.10782037,93863.0,93846.0,0.010656]
[1767660981946,0.09355444,93855.0,93846.0,0.04]
[1767660983346,0.09355444,93855.0,93846.0,0.050656]
[1767660984753,0.09355444,93855.0,93846.0,0.04]
[1767660985948,0.09355444,93861.0,93849.0,0.010655]
[1767660986651,0.01478415,93863.0,93849.0,0.010655]
[1767660986851,0.09355444,93863.0,93849.0,0.010655]
[1767660987254,0.09355444,93863.0,93850.0,0.0982306]
[1767660987554,0.10820973,93863.0,93850.0,0.0982306]
[1767660987945,0.09355444,93862.0,93850.0,0.0982306]
[1767660988954,0.09355444,93862.0,93851.0,0.010655]
[1767660989456,0.09355444,93862.0,93850.0,0.0982306]
[1767660994857,0.09347364,93868.0,93850.0,0.0982306]
[1767660995062,0.09347364,93875.0,93858.0,0.0982306]
[1767660995356,0.09347364,93875.0,93858.0,0.2288706]
[1767660995557,0.10774355,93875.0,93858.0,0.2288706]
[1767660995754,0.10774355,93875.0,93865.0,0.010654]
[1767660995950,0.10774355,93875.0,93858.0,0.1888706]
[1767660996147,0.10774355,93875.0,93858.0,0.2288706]
[1767660996352,0.10774355,93875.0,93864.0,0.010654]
[1767660996860,0.04061581,93877.0,93864.0,0.010654]
[1767660997461,0.05482334,93877.0,93864.0,0.010654]
[1767660998067,0.09061581,93882.0,93868.0,0.010653]
[1767660998261,0.05,93882.0,93870.0,0.0982306]
[1767660998452,0.05,93882.0,93870.0,0.1382306]
[1767660999467,0.06435431,93882.0,93870.0,0.1382306]
[1767661000164,0.06435431,93882.0,93870.0,0.1488836]
[1767661000750,0.09347364,93885.0,93870.0,0.1488836]
[1767661000958,0.09347364,93885.0,93870.0,0.1382306]
[1767661001163,0.09347364,93885.0,93870.0,0.050653]
[1767661001464,0.10781637,93885.0,93870.0,0.1488836]
[1767661001964,0.10781637,93885.0,93872.0,0.010653]
[1767661002165,0.10781637,93885.0,93872.0,0.050653]
[1767661002365,0.14843218,93885.0,93872.0,0.04]
[1767661002665,0.09347364,93884.0,93872.0,0.04]
[1767661003056,0.13408945,93884.0,93872.0,0.04]
[1767661003254,0.09347364,93881.0,93872.0,0.04]
[1767661004857,0.13408945,93881.0,93872.0,0.04]
[1767661008261,0.09347364,93881.0,93872.0,0.04]
[1767661009063,0.01434273,93885.0,93872.0,0.04]
[1767661009365,0.09347364,93888.0,93873.0,0.010653]
[1767661009565,0.09347364,93888.0,93873.0,0.04]
[1767661010061,0.09347364,93888.0,93873.0,0.050653]
[1767661010261,0.14844955,93888.0,93878.0,0.0982306]
[1767661010462,0.14844955,93888.0,93875.0,0.010652]
[1767661010966,0.14844955,93888.0,93872.0,0.010653]
[1767661011164,0.14844955,93888.0,93872.0,0.050653]
[1767661011361,0.09347364,93887.0,93872.0,0.050653]
[1767661011557,0.09347364,93885.0,93872.0,0.050653]
[1767661011757,0.13408945,93884.0,93872.0,0.050653]
[1767661011962,0.13408945,93880.0,93872.0,0.04]
[1767661012162,0.09347364,93880.0,93872.0,0.04]
[1767661014262,0.09347364,93880.0,93872.0,0.050653]
[1767661015066,0.04010869,93891.0,93878.0,0.010652]
[1767661015266,0.04010869,93895.0,93880.0,0.0982306]
[1767661015666,0.04010869,93895.0,93881.0,0.010652]
[1767661015873,0.05456866,93895.0,93881.0,0.010652]
[1767661016165,0.04010869,93890.0,93862.0,0.09656585]
[1767661016362,0.010651,93892.0,93877.0,0.010652]
[1767661016562,0.05075969,93890.0,93877.0,0.04]
[1767661016762,0.04010869,93889.0,93877.0,0.04]
[1767661016965,0.04010869,93888.0,93877.0,0.04]
[1767661017760,0.04010869,93887.0,93877.0,0.04]
[1767661018060,0.04010869,93879.0,93858.0,0.03812239]
[1767661018255,0.09670697,93880.0,93869.0,0.010653]
[1767661018465,0.09670697,93880.0,93869.0,0.050653]
[1767661018973,0.04010869,93882.0,93872.0,0.010653]
[1767661019172,0.13681566,93885.0,93872.0,0.050653]
[1767661019471,0.13681566,93885.0,93872.0,0.00805161]
[1767661019662,0.13681566,93885.0,93872.0,0.04]
[1767661020267,0.13681566,93885.0,93873.0,0.010653]
[1767661020468,0.13681566,93885.0,93873.0,0.050653]
[1767661021980,0.1391169,93883.0,93873.0,0.04]
[1767661022277,0.04326102,93882.0,93873.0,0.04]
[1767661022566,0.1391169,93882.0,93873.0,0.04]
[1767661022768,0.09585588,93882.0,93873.0,0.050653]
[1767661022957,0.04326102,93886.0,93873.0,0.050653]
[1767661023573,0.04326102,93885.0,93873.0,0.050653]
[1767661023961,0.04326102,93885.0,93875.0,0.010652]
[1767661024161,0.04326102,93885.0,93875.0,0.050652]
[1767661024361,0.04326102,93885.0,93875.0,0.04]
[1767661024974,0.04326102,93883.0,93875.0,0.04]
[1767661025365,0.09585588,93884.0,93875.0,0.04]
[1767661026472,0.04326102,93887.0,93875.0,0.04]
[1767661026671,0.1391169,93887.0,93875.0,0.04]
[1767661026867,0.09585588,93887.0,93875.0,0.050652]
[1767661028178,0.00015979,93889.0,93875.0,0.050652]
[1767661028671,0.00015979,93889.0,93875.0,0.04]
[1767661028869,0.1391169,93881.0,93875.0,0.04]
[1767661029069,0.09585588,93881.0,93875.0,0.04]
[1767661029268,0.04326102,93882.0,93875.0,0.04]
[1767661030670,0.010651,93885.0,93875.0,0.04]
[1767661030974,0.1391169,93883.0,93875.0,0.04]
[1767661031671,0.00015979,93889.0,93864.0,0.0906]
[1767661031672,0.09585588,93875.0,93864.0,0.0906]
[1767661031876,0.010652,93878.0,93864.0,0.1306]
[1767661032373,0.04326102,93879.0,93864.0,0.1306]
[1767661032574,0.010652,93877.0,93864.0,0.1306]
[1767661032776,0.10650788,93880.0,93864.0,0.1306]
[1767661032973,0.010652,93878.0,93864.0,0.1306]
[1767661034477,0.09585588,93880.0,93864.0,0.1306]
[1767661036279,0.010652,93879.0,93864.0,0.1306]
[1767661037693,0.10650788,93882.0,93864.0,0.1306]
[1767661038077,0.010652,93880.0,93864.0,0.1306]
[1767661039471,0.010652,93880.0,93864.0,0.141254]
[1767661040180,0.010652,93880.0,93864.0,0.18396942]
[1767661040380,0.09585588,93882.0,93864.0,0.18396942]
[1767661041582,0.010652,93881.0,93864.0,0.18396942]
[1767661042583,0.010652,93881.0,93864.0,0.17331542]
[1767661043883,0.010652,93879.0,93864.0,0.17331542]
[1767661044883,0.010652,93877.0,93864.0,0.17331542]
[1767661047486,0.010652,93877.0,93865.0,0.04271542]
[1767661047686,0.010652,93877.0,93865.0,0.08271542]
[1767661048084,0.010652,93877.0,93865.0,0.01216442]
[1767661048388,0.010652,93877.0,93865.0,0.04]
[1767661049385,0.010653,93875.0,93865.0,0.04]
[1767661049590,0.04326102,93883.0,93865.0,0.04]
[1767661051187,0.010652,93879.0,93865.0,0.04]
[1767661051687,0.010652,93877.0,93865.0,0.04]
[1767661051892,0.04326102,93883.0,93865.0,0.04]
[1767661051893,0.010653,93875.0,93865.0,0.04]
[1767661052482,0.010652,93878.0,93865.0,0.04]
[1767661054887,0.010652,93876.0,93865.0,0.04]
[1767661056189,0.14037572,93883.0,93865.0,0.04]
[1767661056393,0.010652,93879.0,93865.0,0.04]
[1767661057094,0.010652,93877.0,93865.0,0.04]
[1767661057985,0.010653,93875.0,93865.0,0.04]
[1767661059397,0.010653,93871.0,93861.0,0.0906]
[1767661059597,0.03791907,93872.0,93861.0,0.04]
[1767661060095,0.010653,93870.0,93861.0,0.04]
[1767661060291,0.010653,93873.0,93861.0,0.04]
[1767661062395,0.010653,93873.0,93861.0,0.00434704]
[1767661062698,0.010653,93873.0,93861.0,0.04]
[1767661063087,0.04857307,93867.0,93856.0,0.0906]
[1767661063298,0.04857307,93867.0,93856.0,0.1006]
[1767661063299,0.03791907,93866.0,93856.0,0.1006]
[1767661063594,0.03791907,93866.0,93856.0,0.1306]
[1767661064195,0.03791907,93866.0,93856.0,0.04]
[1767661066495,0.14568677,93874.0,93856.0,0.04]
[1767661066691,0.010652,93878.0,93861.0,0.03695746]
[1767661066893,0.03791907,93884.0,93862.0,0.03695746]
[1767661067196,0.0906,93878.0,93862.0,0.04]
[1767661067790,0.010652,93879.0,93862.0,0.13094788]
[1767661068185,0.101252,93882.0,93862.0,0.13094788]
[1767661068492,0.010652,93882.0,93863.0,0.10160188]
[1767661068797,0.101252,93882.0,93864.0,0.09094788]
[1767661068997,0.101252,93882.0,93865.0,0.01801846]
[1767661069183,0.101252,93882.0,93865.0,0.05801846]
[1767661070089,0.101252,93882.0,93866.0,0.01790586]
[1767661070295,0.0906,93882.0,93867.0,0.01790586]
[1767661070494,0.101251,93885.0,93868.0,0.01745795]
[1767661070692,0.101251,93885.0,93868.0,0.05745795]
[1767661071696,0.010652,93883.0,93868.0,0.05745795]
[1767661071896,0.010652,93881.0,93868.0,0.05745795]
[1767661072093,0.010652,93881.0,93868.0,0.04]
[1767661072401,0.010652,93881.0,93868.0,0.00476639]
[1767661072592,0.010652,93881.0,93868.0,0.04]
[1767661072901,0.010652,93879.0,93868.0,0.04]
[1767661073596,0.04857107,93875.0,93868.0,0.04]
[1767661074098,0.04857107,93879.0,93868.0,0.04]
[1767661074898,0.010652,93877.0,93868.0,0.04]
[1767661075100,0.0468856,93877.0,93868.0,0.04]
[1767661075298,0.010652,93877.0,93868.0,0.04]
[1767661075602,0.010652,93878.0,93868.0,0.04]
[1767661075996,0.010653,93875.0,93868.0,0.04]
[1767661077998,0.010652,93879.0,93868.0,0.04]
[1767661078206,0.13439571,93880.0,93868.0,0.04]
[1767661079200,0.010652,93877.0,93868.0,0.04]
[1767661080400,0.010653,93875.0,93868.0,0.04]
[1767661080601,0.09568731,93873.0,93860.0,0.0906]
[1767661080902,0.09568731,93873.0,93860.0,0.1306]
[1767661081601,0.14187779,93878.0,93860.0,0.1306]
[1767661082101,0.010652,93881.0,93862.0,0.01372501]
[1767661082403,0.00212996,93899.0,93883.0,0.01329101]
[1767661082601,0.01065,93898.0,93883.0,0.00325082]
[1767661083103,0.01065,93898.0,93880.0,0.09816211]
[1767661083299,0.01065,93898.0,93874.0,0.0906]
[1767661083300,0.010652,93881.0,93874.0,0.0906]
[1767661083508,0.09440124,93882.0,93874.0,6e-08]
[1767661083694,0.09440124,93882.0,93874.0,0.03]
[1767661083890,0.010652,93881.0,93874.0,0.03]
[1767661085299,0.09440124,93882.0,93874.0,0.03]
[1767661086305,0.10505324,93882.0,93874.0,0.03]
[1767661086693,0.05505324,93882.0,93874.0,0.03]
[1767661092212,0.04440124,93882.0,93874.0,0.03]
[1767661094308,0.010651,93886.0,93874.0,0.03]
[1767661095113,0.010651,93885.0,93874.0,0.03]
[1767661098216,0.09816211,93890.0,93874.0,0.03]
[1767661098412,0.09440124,93893.0,93874.0,0.03139913]
[1767661098413,0.010651,93889.0,93874.0,0.03139913]
[1767661098611,0.0906,93889.0,93875.0,0.00139913]
[1767661098807,0.0906,93889.0,93875.0,0.04139913]
[1767661099609,0.010651,93888.0,93875.0,0.04]
[1767661099815,0.010651,93886.0,93875.0,0.04]
[1767661100412,0.19941311,93890.0,93875.0,0.04]
[1767661100610,0.23623766,93890.0,93875.0,0.04]
[1767661101017,0.010651,93888.0,93875.0,0.04]
[1767661102117,0.010651,93888.0,93875.0,0.00415956]
[1767661102303,0.010651,93887.0,93875.0,0.04]
[1767661103606,0.010652,93881.0,93875.0,0.04]
[1767661103914,0.03682455,93884.0,93875.0,0.04]
[1767661105022,0.10505224,93885.0,93875.0,0.04]
[1767661105218,0.09440124,93885.0,93875.0,0.04]
[1767661110209,0.13122579,93883.0,93875.0,0.04]
[1767661110909,0.04891992,93887.0,93875.0,0.04]
[1767661111124,0.14648388,93887.0,93875.0,0.04]
[1767661111619,0.03826892,93886.0,93875.0,0.04]
[1767661112418,0.03826892,93886.0,93875.0,0.00365179]
[1767661112619,0.03826892,93886.0,93875.0,0.04]
[1767661114932,0.010651,93885.0,93875.0,0.04]
[1767661117431,0.03826892,93886.0,93875.0,0.04]
[1767661117937,0.04891992,93886.0,93875.0,0.04]
[1767661119340,0.010651,93889.0,93875.0,0.04]
[1767661121846,0.010651,93889.0,93870.0,0.0042894]
[1767661122031,0.04891992,93889.0,93870.0,0.0442894]
[1767661128043,0.010651,93887.0,93870.0,0.0442894]
[1767661131045,0.03826892,93889.0,93870.0,0.0442894]
[1767661131451,0.010651,93888.0,93870.0,0.0442894]
[1767661134254,0.18876211,93890.0,93872.0,0.010653]
[1767661134540,0.18876211,93890.0,93872.0,0.04]
[1767661135148,0.18876211,93890.0,93872.0,0.050653]
[1767661135750,0.09816211,93890.0,93872.0,0.050653]
[1767661135950,0.18876211,93890.0,93872.0,0.050653]
[1767661136444,0.18876211,93890.0,93874.0,0.010653]
[1767661136639,0.18876211,93890.0,93874.0,0.050653]
[1767661137146,0.010651,93891.0,93874.0,0.050653]
[1767661137449,0.09816211,93890.0,93874.0,0.050653]
[1767661137849,0.09816211,93890.0,93874.0,0.04]
[1767661138352,0.10881311,93890.0,93874.0,0.04]
[1767661138535,0.010651,93890.0,93874.0,0.04]
[1767661138740,0.010651,93888.0,93874.0,0.04]
[1767661139150,0.03557528,93888.0,93874.0,0.050653]
[1767661139351,0.13313924,93892.0,93874.0,0.050653]
[1767661142943,0.010651,93891.0,93874.0,0.050653]
[1767661144459,0.010651,93891.0,93868.0,0.09510046]
[1767661144758,0.010651,93891.0,93868.0,0.13510046]
[1767661145054,0.010651,93891.0,93869.0,0.09494067]